fUSD/lending_fUSD_20240301
["ID","MTS","AMOUNT","RATE_DAILY","PERIOD"]
[315938026,1709293807221,-718.91,0.00022142,2]
[315938027,1709293807244,-5359.82,0.00022142,2]
[315938028,1709293807267,-1182.74,0.00022142,2]
[315938029,1709293807288,-4100.89,0.00022142,2]
[315938030,1709293807309,-1729.04,0.00022142,2]
[315938031,1709293807330,-500.0,0.00022143,2]
[315938032,1709293807351,-564.0,0.00022143,2]
[315938033,1709293807373,-1495.23,0.00022143,2]
[315938034,1709293807394,-500.0,0.00022143,2]
[315938035,1709293807415,-1435.86,0.00022143,2]
[315938036,1709293807437,-548.6,0.00022143,2]
[315938037,1709293807460,-16010.36,0.00022143,2]
[315938038,1709293807485,-2696.62,0.00022143,2]
[315938039,1709293807507,-867.17,0.00022143,2]
[315938040,1709293807534,-500.0,0.00022143,2]
[315938041,1709293807557,-1217.46,0.00022143,2]
[315938042,1709293807578,-789.59,0.00022143,2]
[315938043,1709293807599,-500.0,0.00022143,2]
[315938044,1709293807622,-500.0,0.00022143,2]
[315938045,1709293807644,-500.0,0.00022143,2]
[315938046,1709293807668,-500.0,0.00022143,2]
[315938047,1709293807692,-1102.83,0.00022143,2]
[315938048,1709293807715,-500.0,0.00022143,2]
[315938049,1709293807737,-622.43,0.00022143,2]
[315938050,1709293807759,-796.11,0.00022143,2]
[315938051,1709293807782,-891.54,0.00022143,2]
[315938052,1709293807804,-500.0,0.00022143,2]
[315938053,1709293807831,-827.08,0.00022143,2]
[315938054,1709293807853,-2978.43,0.00022143,2]
[315938055,1709293807876,-500.0,0.00022143,2]
[315938056,1709293807898,-1724.89,0.00022143,2]
[315938057,1709293807924,-2335.66,0.00022143,2]
[315938058,1709293807946,-1170.98,0.00022143,2]
[315938059,1709293807971,-541.41,0.00022143,2]
[315938060,1709293807992,-675.81,0.00022143,2]
[315938061,1709293808014,-1479.67,0.00022143,2]
[315938062,1709293808036,-1181.14,0.00022143,2]
[315938063,1709293808058,-617.23959222,0.00022143,2]
[315938064,1709293808080,-521.6,0.00022143,2]
[315938065,1709293808102,-597.46,0.00022143,2]
[315938066,1709293808123,-500.0,0.00022143,2]
[315938067,1709293808145,-1109.77,0.00022143,2]
[315938068,1709293808166,-290.29743822,0.00022143,2]
[315938069,1709293808191,-500.0,0.00022144,2]
[315938070,1709293808212,-500.0,0.00022144,2]
[315938071,1709293808235,-561.63,0.00022144,2]
[315938072,1709293808257,-500.0,0.00022144,2]
[315938073,1709293808279,-500.0,0.00022144,2]
[315938074,1709293808301,-500.0,0.00022144,2]
[315938075,1709293808323,-811.76,0.00022144,2]
[315938076,1709293808346,-500.0,0.00022144,2]
[315938077,1709293808571,-500.0,0.00022144,2]
[315938078,1709293808594,-500.0,0.00022144,2]
[315938079,1709293808616,-308.64976956,0.00022144,2]
[315938080,1709293809001,-191.35023044,0.00022144,2]
[315938081,1709293809023,-646.74,0.00022144,2]
[315938082,1709293809045,-500.0,0.00022155,2]
[315938083,1709293809067,-500.0,0.00022155,2]
[315938084,1709293809089,-500.0,0.00022155,2]
[315938085,1709293809112,-1407.91,0.00022155,2]
[315938086,1709293809133,-222.05,0.00022155,2]
[315938087,1709293809155,-500.0,0.00022155,2]
[315938088,1709293809176,-605.54,0.00022155,2]
[315938089,1709293809200,-540.94,0.00022155,2]
[315938090,1709293809223,-500.0,0.00022155,2]
[315938091,1709293809246,-1256.91,0.00022155,2]
[315938092,1709293809267,-500.0,0.00022155,2]
[315938093,1709293809289,-1686.36,0.00022155,2]
[315938094,1709293809309,-500.0,0.00022155,2]
[315938095,1709293809333,-764.64,0.00022155,2]
[315938096,1709293809355,-2363.31,0.00022155,2]
[315938097,1709293809377,-500.0,0.00022155,2]
[315938098,1709293809399,-1597.33,0.00022155,2]
[315938099,1709293809422,-500.0,0.00022155,2]
[315938100,1709293809449,-500.0,0.00022155,2]
[315938101,1709293809470,-500.0,0.00022155,2]
[315938102,1709293809491,-500.0,0.00022155,2]
[315938103,1709293809513,-1216.78,0.00022155,2]
[315938104,1709293809534,-831.7,0.00022155,2]
[315938105,1709293809555,-500.0,0.00022155,2]
[315938106,1709293809577,-606.46,0.00022155,2]
[315938107,1709293809603,-500.0,0.00022155,2]
[315938108,1709293809624,-685.05,0.00022155,2]
[315938109,1709293809647,-979.6,0.00022155,2]
[315938110,1709293809669,-500.0,0.00022155,2]
[315938111,1709293809694,-1097.46,0.00022155,2]
[315938112,1709293809716,-500.0,0.00022155,2]
[315938113,1709293809738,-875.38,0.00022155,2]
[315938114,1709293809759,-653.74,0.00022155,2]
[315938115,1709293809783,-549.32,0.00022155,2]
[315938116,1709293809807,-500.0,0.00022155,2]
[315938117,1709293809831,-1741.85,0.00022155,2]
[315938118,1709293809854,-500.0,0.00022155,2]
[315938119,1709293809876,-532.65,0.00022155,2]
[315938120,1709293809898,-500.0,0.00022155,2]
[315938121,1709293809923,-557.01,0.00022155,2]
[315938122,1709293809947,-500.0,0.00022155,2]
[315938123,1709293809969,-636.39,0.00022155,2]
[315938124,1709293809991,-500.0,0.00022155,2]
[315938125,1709293810013,-2055.25,0.00022155,2]
[315938126,1709293810035,-1045.04,0.00022155,2]
[315938127,1709293810056,-500.0,0.00022155,2]
[315938128,1709293810077,-500.0,0.00022155,2]
[315938129,1709293810099,-730.33,0.00022155,2]
[315938130,1709293810120,-1028.03,0.00022155,2]
[315938131,1709293810142,-672.6,0.00022155,2]
[315938132,1709293810166,-528.88,0.00022155,2]
[315938133,1709293810189,-500.0,0.00022155,2]
[315938134,1709293810212,-500.0,0.00022155,2]
[315938135,1709293810234,-500.0,0.00022155,2]
[315938136,1709293810259,-906.99,0.00022155,2]
[315938137,1709293810281,-500.0,0.00022155,2]
[315938138,1709293810304,-2220.31,0.00022155,2]
[315938139,1709293810327,-504.18,0.00022155,2]
[315938140,1709293810348,-500.0,0.00022155,2]
[315938141,1709293810369,-1251.33,0.00022155,2]
[315938142,1709293810391,-610.63,0.00022155,2]
[315938143,1709293810414,-597.75,0.00022155,2]
[315938144,1709293810437,-645.24639851,0.00022155,2]
[315938145,1709293810460,-500.0,0.00022155,2]
[315938146,1709293810483,-500.0,0.00022155,2]
[315938147,1709293810507,-500.0,0.00022155,2]
[315938148,1709293810528,-500.0,0.00022155,2]
[315938149,1709293810551,-500.0,0.00022155,2]
[315938150,1709293810573,-500.0,0.00022155,2]
[315938151,1709293810595,-500.0,0.00022155,2]
[315938152,1709293810617,-500.0,0.00022155,2]
[315938153,1709293810639,-500.0,0.00022155,2]
[315938154,1709293810661,-500.0,0.00022155,2]
[315938155,1709293810682,-500.0,0.00022155,2]
[315938156,1709293810706,-500.0,0.00022155,2]
[315938157,1709293810728,-500.0,0.00022155,2]
[315938158,1709293810749,-500.0,0.00022155,2]
[315938159,1709293810772,-500.0,0.00022155,2]
[315938160,1709293810795,-2188.64,0.00022155,2]
[315938161,1709293810818,-705.07,0.00022155,2]
[315938162,1709293810839,-249.10988376,0.00022192,2]
[315938163,1709293810864,-5424.03,0.00022261,2]
[315938164,1709293810886,-1096.42,0.00022261,2]
[315938165,1709293810909,-500.0,0.00022261,2]
[315938166,1709293810930,-150.0,0.000223,2]
[315938167,1709293810952,-200.0,0.00022305,30]
[315938168,1709293810974,-200.0,0.00022305,30]
[315938169,1709293810995,-200.0,0.00022305,30]
[315938170,1709293811017,-200.0,0.00022305,30]
[315938171,1709293811038,-200.0,0.00022305,30]
[315938172,1709293811059,-2358.434,0.00022329,2]
[315938173,1709293811081,-200.0,0.00022336,2]
[315938174,1709293811103,-689.14,0.00022416,2]
[315938175,1709293811125,-500.0,0.00022416,2]
[315938176,1709293811147,-500.0,0.00022416,2]
[315938177,1709293811169,-1445.28,0.00022416,2]
[315938178,1709293811193,-4672.8,0.00022416,2]
[315938179,1709293811215,-544.91053142,0.00022416,2]
[315938180,1709293811237,-557.02,0.00022416,2]
[315938181,1709293811260,-726.26,0.00022416,2]
[315938182,1709293811282,-500.0,0.00022416,2]
[315938183,1709293811304,-699.74,0.00022416,2]
[315938184,1709293811326,-661.47,0.00022416,2]
[315938185,1709293811348,-500.0,0.00022416,2]
[315938186,1709293811371,-591.58,0.00022416,2]
[315938187,1709293811393,-500.0,0.00022416,2]
[315938188,1709293811418,-1375.63,0.00022416,2]
[315938189,1709293811445,-500.0,0.00022416,2]
[315938190,1709293811475,-155.0,0.00022416,2]
[315938191,1709293811504,-575.89,0.00022416,2]
[315938192,1709293811530,-1001.98,0.00022416,2]
[315938193,1709293811556,-1212.18,0.00022416,2]
[315938194,1709293811583,-500.0,0.00022416,2]
[315938195,1709293811612,-718.91,0.00022416,2]
[315938196,1709293811644,-5359.82,0.00022416,2]
[315938197,1709293811672,-1182.74,0.00022416,2]
[315938198,1709293811699,-3914.90895587,0.00022416,2]
[315938199,1709293812086,-151.45,0.00022408,2]
[315938200,1709293812114,-185.98104413,0.00022416,2]
[315938201,1709293812143,-1729.04,0.00022416,2]
[315938202,1709293812168,-629.70126919,0.00022417,2]
[315938203,1709293812195,-1775.34,0.00022417,2]
[315938204,1709293812220,-870.44,0.00022417,2]
[315938205,1709293812247,-500.0,0.00022417,2]
[315938206,1709293812272,-564.0,0.00022417,2]
[315938207,1709293812306,-1495.23,0.00022417,2]
[315938208,1709293812330,-500.0,0.00022417,2]
[315938209,1709293812355,-1435.86,0.00022417,2]
[315938210,1709293812384,-548.6,0.00022417,2]
[315938211,1709293812410,-16010.36,0.00022417,2]
[315938212,1709293812436,-2696.62,0.00022417,2]
[315938213,1709293812463,-867.17,0.00022417,2]
[315938214,1709293812489,-500.0,0.00022417,2]
[315938215,1709293812514,-1217.46,0.00022417,2]
[315938216,1709293812540,-789.59,0.00022417,2]
[315938217,1709293812565,-500.0,0.00022417,2]
[315938218,1709293812590,-500.0,0.00022417,2]
[315938219,1709293812616,-500.0,0.00022417,2]
[315938220,1709293812641,-500.0,0.00022417,2]
[315938221,1709293812666,-1102.83,0.00022417,2]
[315938222,1709293812693,-500.0,0.00022417,2]
[315938223,1709293812718,-622.43,0.00022417,2]
[315938224,1709293812745,-796.11,0.00022417,2]
[315938225,1709293812773,-891.54,0.00022417,2]
[315938226,1709293812803,-500.0,0.00022417,2]
[315938227,1709293812836,-827.08,0.00022417,2]
[315938228,1709293812862,-2978.43,0.00022417,2]
[315938229,1709293812888,-500.0,0.00022417,2]
[315938230,1709293812914,-1724.89,0.00022417,2]
[315938231,1709293812941,-2335.66,0.00022417,2]
[315938232,1709293812966,-1170.98,0.00022417,2]
[315938233,1709293812992,-541.41,0.00022417,2]
[315938234,1709293813018,-675.81,0.00022417,2]
[315938235,1709293813044,-1479.67,0.00022417,2]
[315938236,1709293813069,-1181.14,0.00022417,2]
[315938237,1709293813094,-521.6,0.00022417,2]
[315938238,1709293813119,-597.46,0.00022417,2]
[315938239,1709293813144,-510.45340793,0.00022417,2]
[315938240,1709293813169,-1109.77,0.00022417,2]
[315938241,1709293813194,-500.0,0.00022418,2]
[315938242,1709293813218,-500.0,0.00022418,2]
[315938243,1709293813242,-500.0,0.00022418,2]
[315938244,1709293813266,-500.0,0.00022418,2]
[315938245,1709293813290,-776.58,0.00022418,2]
[315938246,1709293813314,-500.0,0.00022418,2]
[315938247,1709293813338,-500.0,0.00022418,2]
[315938248,1709293813363,-500.0,0.00022418,2]
[315938249,1709293813387,-500.0,0.00022418,2]
[315938250,1709293813413,-500.0,0.00022418,2]
[315938251,1709293813438,-500.0,0.00022418,2]
[315938252,1709293813462,-500.0,0.00022418,2]
[315938253,1709293813486,-500.0,0.00022418,2]
[315938254,1709293813510,-500.0,0.00022418,2]
[315938255,1709293813534,-500.0,0.00022418,2]
[315938256,1709293813557,-500.0,0.00022418,2]
[315938257,1709293813582,-740.64,0.00022418,2]
[315938258,1709293813605,-500.0,0.00022418,2]
[315938259,1709293813629,-500.0,0.00022418,2]
[315938260,1709293813653,-500.0,0.00022418,2]
[315938261,1709293813677,-620.59,0.00022418,2]
[315938262,1709293813702,-340.89047449,0.00022418,2]
[315938263,1709293813727,-500.0,0.00022418,2]
[315938264,1709293813751,-500.0,0.00022418,2]
[315938265,1709293813776,-547.9,0.00022418,2]
[315938266,1709293813802,-533.42026365,0.00022418,2]
[315938267,1709293813851,-500.0,0.00022418,2]
[315938268,1709293813881,-500.0,0.00022418,2]
[315938269,1709293813914,-500.0,0.00022418,2]
[315938270,1709293813949,-500.0,0.00022418,2]
[315938271,1709293813976,-500.0,0.00022418,2]
[315938272,1709293814002,-500.0,0.00022418,2]
[315938273,1709293814029,-558.64,0.00022418,2]
[315938274,1709293814055,-500.0,0.00022418,2]
[315938275,1709293814081,-500.0,0.00022418,2]
[315938276,1709293814107,-500.0,0.00022418,2]
[315938277,1709293814134,-500.0,0.00022418,2]
[315938278,1709293814160,-500.0,0.00022418,2]
[315938279,1709293814186,-191.52,0.00022418,2]
[315938280,1709293814212,-500.0,0.00022418,2]
[315938281,1709293814242,-500.0,0.00022418,2]
[315938282,1709293814270,-500.0,0.00022418,2]
[315938283,1709293814818,-500.0,0.00022418,2]
[315938284,1709293814869,-500.0,0.00022418,2]
[315938285,1709293814893,-500.0,0.00022418,2]
[315938286,1709293814916,-500.0,0.00022418,2]
[315938287,1709293814940,-500.0,0.00022418,2]
[315938288,1709293814963,-543.72938755,0.00022418,2]
[315938289,1709293814986,-500.0,0.00022418,2]
[315938290,1709293815009,-500.0,0.00022418,2]
[315938291,1709293815031,-500.0,0.00022418,2]
[315938292,1709293815054,-500.0,0.00022418,2]
[315938293,1709293815076,-578.75,0.00022418,2]
[315938294,1709293815099,-500.0,0.00022418,2]
[315938295,1709293815122,-500.0,0.00022418,2]
[315938296,1709293815147,-500.0,0.00022418,2]
[315938297,1709293815170,-500.0,0.00022418,2]
[315938298,1709293815193,-500.0,0.00022418,2]
[315938299,1709293815216,-500.0,0.00022418,2]
[315938300,1709293815238,-493.83591366,0.00022418,2]
[315938301,1709293815261,-500.0,0.00022418,2]
[315938302,1709293815283,-526.78,0.00022418,2]
[315938303,1709293815305,-500.0,0.00022418,2]
[315938304,1709293815328,-500.0,0.00022418,2]
[315938305,1709293815350,-500.0,0.00022418,2]
[315938306,1709293815373,-500.0,0.00022418,2]
[315938307,1709293815397,-500.0,0.00022418,2]
[315938308,1709293815420,-500.0,0.00022418,2]
[315938309,1709293815443,-500.0,0.00022418,2]
[315938310,1709293815465,-500.0,0.00022418,2]
[315938311,1709293815488,-500.0,0.00022418,2]
[315938312,1709293815510,-500.0,0.00022418,2]
[315938313,1709293815532,-561.63,0.00022418,2]
[315938314,1709293815554,-500.0,0.00022418,2]
[315938315,1709293815576,-500.0,0.00022418,2]
[315938316,1709293815598,-500.0,0.00022418,2]
[315938317,1709293815621,-811.76,0.00022418,2]
[315938318,1709293815643,-500.0,0.00022418,2]
[315938319,1709293815665,-500.0,0.00022418,2]
[315938320,1709293815687,-500.0,0.00022418,2]
[315938321,1709293815709,-500.0,0.00022418,2]
[315938322,1709293815731,-646.74,0.00022418,2]
[315938323,1709293815754,-677.77743885,0.00022427,2]
[315938324,1709293815777,-404.85391741,0.00022427,2]
[315938325,1709293815798,-1909.85688314,0.00022427,2]
[315938326,1709293817629,-500.0,0.00022155,2]
[315938327,1709293817654,-500.0,0.00022155,2]
[315938328,1709293817677,-150.0,0.0002227,2]
[315938329,1709293817699,-151.46,0.00022408,2]
[315938330,1709293817722,-3983.58485449,0.00022427,2]
[315938331,1709293817744,-193.05231164,0.00022428,2]
[315938332,1709293817767,-1009.34064671,0.00022428,2]
[315938333,1709293817790,-500.0,0.00022428,2]
[315938334,1709293817814,-500.0,0.00022429,2]
[315938335,1709293817837,-759.96,0.00022429,2]
[315938336,1709293817860,-500.0,0.00022429,2]
[315938337,1709293817885,-509.55,0.00022429,2]
[315938338,1709293817909,-500.0,0.00022429,2]
[315938339,1709293817933,-500.0,0.00022429,2]
[315938340,1709293817963,-500.0,0.00022429,2]
[315938341,1709293817990,-500.0,0.00022429,2]
[315938342,1709293818014,-500.0,0.00022429,2]
[315938343,1709293818037,-500.0,0.00022429,2]
[315938344,1709293818061,-681.05,0.00022429,2]
[315938345,1709293818084,-500.0,0.00022429,2]
[315938346,1709293818107,-500.0,0.00022429,2]
[315938347,1709293818130,-500.0,0.00022429,2]
[315938348,1709293818154,-539.65173787,0.00022429,2]
[315938349,1709293818177,-500.0,0.00022429,2]
[315938350,1709293818202,-500.0,0.00022429,2]
[315938351,1709293818225,-500.0,0.00022429,2]
[315938352,1709293818247,-500.0,0.00022429,2]
[315938353,1709293818270,-643.81,0.00022429,2]
[315938354,1709293818293,-500.0,0.00022429,2]
[315938355,1709293818315,-500.0,0.00022429,2]
[315938356,1709293818339,-500.0,0.00022429,2]
[315938357,1709293818362,-500.0,0.00022429,2]
[315938358,1709293818384,-500.0,0.00022429,2]
[315938359,1709293818406,-500.0,0.00022429,2]
[315938360,1709293818428,-500.0,0.00022429,2]
[315938361,1709293818452,-500.0,0.00022429,2]
[315938362,1709293818476,-500.0,0.00022429,2]
[315938363,1709293818498,-500.0,0.00022429,2]
[315938364,1709293818520,-823.01,0.00022429,2]
[315938365,1709293818543,-440.53635056,0.00022429,2]
[315938366,1709293818566,-592.07,0.00022429,2]
[315938367,1709293818588,-500.0,0.00022429,2]
[315938368,1709293818612,-500.0,0.00022429,2]
[315938369,1709293818635,-500.0,0.00022429,2]
[315938370,1709293818659,-500.0,0.00022429,2]
[315938371,1709293818682,-500.0,0.00022429,2]
[315938372,1709293818705,-500.0,0.00022429,2]
[315938373,1709293818728,-500.0,0.00022429,2]
[315938374,1709293818751,-500.0,0.00022429,2]
[315938375,1709293818773,-500.0,0.00022429,2]
[315938376,1709293818796,-500.0,0.00022429,2]
[315938377,1709293818820,-500.0,0.00022429,2]
[315938378,1709293818847,-500.0,0.00022429,2]
[315938379,1709293818871,-500.0,0.00022429,2]
[315938380,1709293818894,-500.0,0.00022429,2]
[315938381,1709293818919,-500.0,0.00022429,2]
[315938382,1709293818942,-500.0,0.00022429,2]
[315938383,1709293818965,-752.37,0.00022429,2]
[315938384,1709293818987,-500.0,0.00022429,2]
[315938385,1709293819009,-500.0,0.00022429,2]
[315938386,1709293819032,-500.0,0.00022429,2]
[315938387,1709293819054,-500.0,0.00022429,2]
[315938388,1709293819082,-526.94,0.00022429,2]
[315938389,1709293819105,-885.5,0.00022429,2]
[315938390,1709293819127,-500.0,0.00022429,2]
[315938391,1709293819149,-500.0,0.00022429,2]
[315938392,1709293819171,-500.0,0.00022429,2]
[315938393,1709293819193,-500.0,0.00022429,2]
[315938394,1709293819217,-500.0,0.00022429,2]
[315938395,1709293819240,-150.0,0.00022429,2]
[315938396,1709293819263,-500.0,0.00022429,2]
[315938397,1709293819286,-500.0,0.00022429,2]
[315938398,1709293819310,-500.0,0.00022429,2]
[315938399,1709293819334,-500.0,0.00022429,2]
[315938400,1709293819359,-568.68,0.00022429,2]
[315938401,1709293819382,-500.0,0.00022429,2]
[315938402,1709293819405,-500.0,0.00022429,2]
[315938403,1709293819429,-840.38,0.00022429,2]
[315938404,1709293819455,-500.0,0.00022429,2]
[315938405,1709293819478,-505.71,0.00022429,2]
[315938406,1709293819501,-500.0,0.00022429,2]
[315938407,1709293819523,-500.0,0.00022429,2]
[315938408,1709293819546,-587.74,0.00022429,2]
[315938409,1709293819569,-500.0,0.00022429,2]
[315938410,1709293819593,-601.38,0.00022429,2]
[315938411,1709293819618,-500.0,0.00022429,2]
[315938412,1709293819642,-8201.21,0.00022429,2]
[315938413,1709293819666,-500.0,0.00022429,2]
[315938414,1709293819688,-500.0,0.00022429,2]
[315938415,1709293819713,-523.29,0.00022429,2]
[315938416,1709293819735,-508.1604156,0.00022429,2]
[315938417,1709293819758,-727.16,0.00022429,2]
[315938418,1709293819781,-500.0,0.00022429,2]
[315938419,1709293819805,-500.0,0.00022429,2]
[315938420,1709293819832,-929.18,0.00022429,2]
[315938421,1709293819855,-5203.31,0.00022429,2]
[315938422,1709293819879,-660.28,0.00022429,2]
[315938423,1709293819902,-500.0,0.00022429,2]
[315938424,1709293819924,-613.98,0.00022429,2]
[315938425,1709293819950,-500.0,0.00022429,2]
[315938426,1709293819973,-2957.65,0.00022429,2]
[315938427,1709293819997,-500.0,0.00022429,2]
[315938428,1709293820025,-1029.46,0.00022429,2]
[315938429,1709293820051,-2708.89,0.00022429,2]
[315938430,1709293820219,-1487.72,0.00022429,2]
[315938431,1709293820243,-500.0,0.00022429,2]
[315938432,1709293820268,-1283.68,0.00022429,2]
[315938433,1709293820295,-1912.62,0.00022429,2]
[315938434,1709293820318,-500.0,0.00022429,2]
[315938435,1709293820341,-500.0,0.00022429,2]
[315938436,1709293820363,-500.0,0.00022429,2]
[315938437,1709293820387,-1407.91,0.00022429,2]
[315938438,1709293820409,-500.0,0.00022429,2]
[315938439,1709293820432,-605.54,0.00022429,2]
[315938440,1709293820464,-540.94,0.00022429,2]
[315938441,1709293820487,-500.0,0.00022429,2]
[315938442,1709293820511,-1256.91,0.00022429,2]
[315938443,1709293820534,-500.0,0.00022429,2]
[315938444,1709293820557,-1686.36,0.00022429,2]
[315938445,1709293820581,-764.64,0.00022429,2]
[315938446,1709293820605,-500.0,0.00022429,2]
[315938447,1709293820629,-2363.31,0.00022429,2]
[315938448,1709293820653,-1597.33,0.00022429,2]
[315938449,1709293820679,-500.0,0.00022429,2]
[315938450,1709293820703,-500.0,0.00022429,2]
[315938451,1709293820728,-500.0,0.00022429,2]
[315938452,1709293820752,-500.0,0.00022429,2]
[315938453,1709293820778,-1216.78,0.00022429,2]
[315938454,1709293820802,-831.7,0.00022429,2]
[315938455,1709293820830,-500.0,0.00022429,2]
[315938456,1709293820855,-606.46,0.00022429,2]
[315938457,1709293820881,-479.75368313,0.00022429,2]
[315938458,1709293821924,-157.22,0.00021918,2]
[315938459,1709293821949,-1171.99,0.00022143,2]
[315938460,1709293821974,-500.0,0.00022155,2]
[315938461,1709293822000,-1171.99,0.00022417,2]
[315938462,1709293822025,-20.24631687,0.00022429,2]
[315938463,1709293822049,-685.05,0.00022429,2]
[315938464,1709293822074,-979.6,0.00022429,2]
[315938465,1709293822098,-500.0,0.00022429,2]
[315938466,1709293822121,-1097.46,0.00022429,2]
[315938467,1709293822144,-500.0,0.00022429,2]
[315938468,1709293822168,-875.38,0.00022429,2]
[315938469,1709293822191,-549.32,0.00022429,2]
[315938470,1709293822217,-500.0,0.00022429,2]
[315938471,1709293822240,-653.74,0.00022429,2]
[315938472,1709293822264,-1741.85,0.00022429,2]
[315938473,1709293822289,-500.0,0.00022429,2]
[315938474,1709293822314,-532.65,0.00022429,2]
[315938475,1709293822338,-500.0,0.00022429,2]
[315938476,1709293822364,-557.01,0.00022429,2]
[315938477,1709293822388,-500.0,0.00022429,2]
[315938478,1709293822413,-636.39,0.00022429,2]
[315938479,1709293822441,-500.0,0.00022429,2]
[315938480,1709293822469,-2055.25,0.00022429,2]
[315938481,1709293822496,-1045.04,0.00022429,2]
[315938482,1709293822521,-500.0,0.00022429,2]
[315938483,1709293822546,-730.33,0.00022429,2]
[315938484,1709293822571,-1028.03,0.00022429,2]
[315938485,1709293822855,-672.6,0.00022429,2]
[315938486,1709293822884,-528.88,0.00022429,2]
[315938487,1709293822910,-500.0,0.00022429,2]
[315938488,1709293822936,-500.0,0.00022429,2]
[315938489,1709293822963,-500.0,0.00022429,2]
[315938490,1709293822988,-906.99,0.00022429,2]
[315938491,1709293823014,-500.0,0.00022429,2]
[315938492,1709293823038,-2220.31,0.00022429,2]
[315938493,1709293823063,-504.18,0.00022429,2]
[315938494,1709293823088,-500.0,0.00022429,2]
[315938495,1709293823112,-1251.33,0.00022429,2]
[315938496,1709293823138,-610.63,0.00022429,2]
[315938497,1709293823165,-597.75,0.00022429,2]
[315938498,1709293823191,-500.0,0.00022429,2]
[315938499,1709293823218,-500.0,0.00022429,2]
[315938500,1709293823243,-500.0,0.00022429,2]
[315938501,1709293823267,-500.0,0.00022429,2]
[315938502,1709293823292,-500.0,0.00022429,2]
[315938503,1709293823316,-500.0,0.00022429,2]
[315938504,1709293823339,-500.0,0.00022429,2]
[315938505,1709293823364,-500.0,0.00022429,2]
[315938506,1709293823389,-500.0,0.00022429,2]
[315938507,1709293823412,-500.0,0.00022429,2]
[315938508,1709293823435,-500.0,0.00022429,2]
[315938509,1709293823460,-500.0,0.00022429,2]
[315938510,1709293823484,-500.0,0.00022429,2]
[315938511,1709293823507,-500.0,0.00022429,2]
[315938512,1709293823529,-500.0,0.00022429,2]
[315938513,1709293823553,-2188.64,0.00022429,2]
[315938514,1709293823576,-705.07,0.00022429,2]
[315938515,1709293823599,-500.0,0.00022429,2]
[315938516,1709293823622,-500.0,0.00022429,2]
[315938517,1709293823644,-58625.07368313,0.00022436,2]
[315938518,1709293828668,-3659.22,0.00022142,2]
[315938519,1709293828689,-808.72,0.00022142,2]
[315938520,1709293828712,-938.1,0.00022143,2]
[315938521,1709293828735,-500.0,0.00022143,2]
[315938522,1709293828759,-1613.1,0.00022143,2]
[315938523,1709293828791,-87332.35290637,0.00022145,2]
[315938524,1709293828815,-500.0,0.00022155,2]
[315938525,1709293828842,-500.0,0.00022155,2]